[Event "Titled Tuesday Blitz May 25 2021"]
[White "Costachi, Mihnea"]
[Black "Escobar Forero, Alder"]
[WhiteFideId "1217518"]
[BlackFideId "4400801"]
[WhiteElo "2479"]
[BlackElo "2513"]
[Result "1-0"]
[Round "02"]
[TimeControl "180+1"]
[Date "2021.05.25"]
[WhiteClock "0:01:46"]
[BlackClock "0:00:13"]

1. d4 {[%clk 0:03:00]}  d5 {[%clk 0:02:58]} 2. c4 {[%clk 0:03:01]}  e6 {[%clk 0:02:58]} 3. Nc3 {[%clk 0:03:00]}  Nf6 {[%clk 0:02:58]} 4. Bg5 {[%clk 0:03:00]}  Be7 {[%clk 0:02:53]} 5. cxd5 {[%clk 0:03:01]}  exd5 {[%clk 0:02:52]} 6. Qc2 {[%clk 0:03:01]}  c6 {[%clk 0:02:52]} 7. e3 {[%clk 0:03:01]}  Nbd7 {[%clk 0:02:52]} 8. Bd3 {[%clk 0:03:01]}  h6 {[%clk 0:02:52]} 9. Bh4 {[%clk 0:03:00]}  Nh5 {[%clk 0:02:51]} 10. Bxe7 {[%clk 0:02:59]}  Qxe7 {[%clk 0:02:52]} 11. Nf3 {[%clk 0:03:00]}  Nb6 {[%clk 0:02:41]} 12. h3 {[%clk 0:02:54]}  Nf4 {[%clk 0:02:34]} 13. Bf1 {[%clk 0:02:50]}  g6 {[%clk 0:02:16]} 14. g4 {[%clk 0:02:46]}  h5 {[%clk 0:02:09]} 15. Rg1 {[%clk 0:02:31]}  hxg4 {[%clk 0:01:57]} 16. hxg4 {[%clk 0:02:31]}  Ne6 {[%clk 0:01:26]} 17. O-O-O {[%clk 0:02:28]}  Bd7 {[%clk 0:01:24]} 18. Ne5 {[%clk 0:02:23]}  O-O-O {[%clk 0:01:23]} 19. Kb1 {[%clk 0:02:20]}  Kb8 {[%clk 0:01:22]} 20. Na4 {[%clk 0:02:16]}  Nxa4 {[%clk 0:01:21]} 21. Qxa4 {[%clk 0:02:17]}  Be8 {[%clk 0:01:20]} 22. Qc2 {[%clk 0:02:10]}  Ng5 {[%clk 0:01:14]} 23. f4 {[%clk 0:02:08]}  Ne4 {[%clk 0:01:11]} 24. Bd3 {[%clk 0:02:07]}  f6 {[%clk 0:01:06]} 25. Bxe4 {[%clk 0:02:07]}  dxe4 {[%clk 0:00:56]} 26. Nc4 {[%clk 0:02:06]}  Bf7 {[%clk 0:00:56]} 27. g5 {[%clk 0:02:00]}  Qb4 {[%clk 0:00:42]} 28. b3 {[%clk 0:01:54]}  Bxc4 {[%clk 0:00:36]} 29. Qxc4 {[%clk 0:01:55]}  Qxc4 {[%clk 0:00:34]} 30. bxc4 {[%clk 0:01:56]}  f5 {[%clk 0:00:34]} 31. Rh1 {[%clk 0:01:57]}  Kc7 {[%clk 0:00:34]} 32. Kc2 {[%clk 0:01:57]}  Kd6 {[%clk 0:00:34]} 33. Kc3 {[%clk 0:01:57]}  Ke6 {[%clk 0:00:33]} 34. Rb1 {[%clk 0:01:58]}  b6 {[%clk 0:00:33]} 35. a4 {[%clk 0:01:58]}  c5 {[%clk 0:00:24]} 36. d5+ {[%clk 0:01:55]}  Kd6 {[%clk 0:00:23]} 37. a5 {[%clk 0:01:55]}  Kc7 {[%clk 0:00:23]} 38. axb6+ {[%clk 0:01:55]}  axb6 {[%clk 0:00:23]} 39. Ra1 {[%clk 0:01:55]}  Kb7 {[%clk 0:00:23]} 40. Rh6 {[%clk 0:01:55]}  Rxh6 {[%clk 0:00:21]} 41. gxh6 {[%clk 0:01:56]}  Rh8 {[%clk 0:00:20]} 42. Rh1 {[%clk 0:01:56]}  Rh7 {[%clk 0:00:21]} 43. Kb3 {[%clk 0:01:55]}  Ka7 {[%clk 0:00:19]} 44. Ka4 {[%clk 0:01:49]}  Ka6 {[%clk 0:00:19]} 45. d6 {[%clk 0:01:48]}  b5+ {[%clk 0:00:13]} 46. cxb5+ {[%clk 0:01:47]}  Kb7 {[%clk 0:00:13]} 47. Kb3 {[%clk 0:01:46]}  Kc8 {[%clk 0:00:13]} 48. Kc4 {[%clk 0:01:46]} 1-0


[Site "https://www.chess.com"]

[Event "Titled Tuesday Blitz May 25 2021"]
[White "Dang, Hoang Son"]
[Black "Gontcharov, Vladislav"]
[WhiteFideId "12402435"]
[BlackFideId "4123492"]
[WhiteElo "2248"]
[BlackElo "2503"]
[Result "1-0"]
[Round "02"]
[TimeControl "180+1"]
[Date "2021.05.25"]
[WhiteClock "0:00:46"]
[BlackClock "0:00:04"]

1. d4 {[%clk 0:03:00]}  Nf6 {[%clk 0:02:57]} 2. c4 {[%clk 0:03:01]}  g6 {[%clk 0:02:52]} 3. Nf3 {[%clk 0:03:02]}  Bg7 {[%clk 0:02:52]} 4. Nc3 {[%clk 0:03:00]}  O-O {[%clk 0:02:50]} 5. e4 {[%clk 0:02:59]}  d6 {[%clk 0:02:51]} 6. Be2 {[%clk 0:02:58]}  Bg4 {[%clk 0:02:48]} 7. O-O {[%clk 0:02:58]}  Nfd7 {[%clk 0:02:45]} 8. Ne1 {[%clk 0:02:57]}  Bxe2 {[%clk 0:02:45]} 9. Nxe2 {[%clk 0:02:58]}  c5 {[%clk 0:02:33]} 10. Be3 {[%clk 0:02:54]}  cxd4 {[%clk 0:02:32]} 11. Bxd4 {[%clk 0:02:54]}  Nc6 {[%clk 0:02:26]} 12. Bxg7 {[%clk 0:02:54]}  Kxg7 {[%clk 0:02:27]} 13. Nc2 {[%clk 0:02:51]}  Qa5 {[%clk 0:02:23]} 14. Ng3 {[%clk 0:02:45]}  Nf6 {[%clk 0:02:19]} 15. b3 {[%clk 0:02:37]}  a6 {[%clk 0:02:13]} 16. Ne3 {[%clk 0:02:13]}  Qc5 {[%clk 0:01:44]} 17. Rc1 {[%clk 0:02:07]}  e6 {[%clk 0:01:33]} 18. Qd2 {[%clk 0:02:04]}  Rfd8 {[%clk 0:01:31]} 19. Rfd1 {[%clk 0:02:04]}  a5 {[%clk 0:01:28]} 20. Qb2 {[%clk 0:01:50]}  Qe5 {[%clk 0:01:22]} 21. Qb1 {[%clk 0:01:39]}  h5 {[%clk 0:01:16]} 22. f3 {[%clk 0:01:27]}  Nd4 {[%clk 0:01:07]} 23. Qd3 {[%clk 0:01:18]}  Nc6 {[%clk 0:00:58]} 24. Kh1 {[%clk 0:01:18]}  a4 {[%clk 0:00:40]} 25. Rd2 {[%clk 0:01:03]}  axb3 {[%clk 0:00:39]} 26. axb3 {[%clk 0:01:03]}  h4 {[%clk 0:00:26]} 27. Ne2 {[%clk 0:01:02]}  h3 {[%clk 0:00:26]} 28. g4 {[%clk 0:00:55]}  Ra3 {[%clk 0:00:21]} 29. Nc2 {[%clk 0:00:53]}  Ra2 {[%clk 0:00:16]} 30. Nc3 {[%clk 0:00:51]}  Qf4 {[%clk 0:00:05]} 31. Nxa2 {[%clk 0:00:46]}  Ne5 {[%clk 0:00:04]} 32. Qe3 {[%clk 0:00:46]} 1-0


[Site "https://www.chess.com"]

[Event "Titled Tuesday Blitz May 25 2021"]
[White "Demin, Vladimir"]
[Black "Nguyen, Ngoc Truong Son"]
[WhiteFideId "4167457"]
[BlackFideId "12401110"]
[WhiteElo "2570"]
[BlackElo "2596"]
[Result "0-1"]
[Round "02"]
[TimeControl "180+1"]
[Date "2021.05.25"]
[WhiteClock "0:00:06"]
[BlackClock "0:00:05"]

1. e4 {[%clk 0:02:57]}  c5 {[%clk 0:02:59]} 2. Nf3 {[%clk 0:02:55]}  Nc6 {[%clk 0:02:59]} 3. c3 {[%clk 0:02:54]}  Nf6 {[%clk 0:02:56]} 4. e5 {[%clk 0:02:54]}  Nd5 {[%clk 0:02:57]} 5. d4 {[%clk 0:02:55]}  cxd4 {[%clk 0:02:53]} 6. cxd4 {[%clk 0:02:55]}  d6 {[%clk 0:02:51]} 7. Bc4 {[%clk 0:02:54]}  e6 {[%clk 0:02:45]} 8. O-O {[%clk 0:02:37]}  Nb6 {[%clk 0:02:31]} 9. Bb3 {[%clk 0:02:29]}  dxe5 {[%clk 0:02:29]} 10. dxe5 {[%clk 0:02:29]}  Qxd1 {[%clk 0:02:28]} 11. Rxd1 {[%clk 0:02:30]}  Be7 {[%clk 0:02:26]} 12. Nc3 {[%clk 0:02:28]}  O-O {[%clk 0:02:23]} 13. Be3 {[%clk 0:02:23]}  Nd7 {[%clk 0:02:20]} 14. Nb5 {[%clk 0:02:16]}  a6 {[%clk 0:02:10]} 15. Nc7 {[%clk 0:01:59]}  Rb8 {[%clk 0:02:07]} 16. Rac1 {[%clk 0:01:59]}  Ndxe5 {[%clk 0:01:01]} 17. Nxe5 {[%clk 0:01:58]}  Nxe5 {[%clk 0:01:02]} 18. Ba7 {[%clk 0:01:52]}  Nd7 {[%clk 0:00:51]} 19. Bxb8 {[%clk 0:01:28]}  Nxb8 {[%clk 0:00:52]} 20. Na8 {[%clk 0:01:21]}  Bg5 {[%clk 0:00:30]} 21. Rc2 {[%clk 0:01:10]}  Bd7 {[%clk 0:00:27]} 22. Nb6 {[%clk 0:01:02]}  Bc6 {[%clk 0:00:26]} 23. Nc4 {[%clk 0:00:59]}  Bf6 {[%clk 0:00:21]} 24. Na5 {[%clk 0:00:57]}  Be4 {[%clk 0:00:16]} 25. Re2 {[%clk 0:00:57]}  Bc6 {[%clk 0:00:12]} 26. Red2 {[%clk 0:00:38]}  g6 {[%clk 0:00:11]} 27. f3 {[%clk 0:00:35]}  h5 {[%clk 0:00:10]} 28. Bc4 {[%clk 0:00:27]}  Rc8 {[%clk 0:00:08]} 29. Bf1 {[%clk 0:00:24]}  Rc7 {[%clk 0:00:07]} 30. Nxc6 {[%clk 0:00:20]}  Nxc6 {[%clk 0:00:06]} 31. Rd7 {[%clk 0:00:20]}  Rxd7 {[%clk 0:00:06]} 32. Rxd7 {[%clk 0:00:21]}  b5 {[%clk 0:00:06]} 33. Kf2 {[%clk 0:00:20]}  Bxb2 {[%clk 0:00:06]} 34. Rc7 {[%clk 0:00:18]}  Nb4 {[%clk 0:00:05]} 35. Rc8+ {[%clk 0:00:17]}  Kg7 {[%clk 0:00:05]} 36. Ra8 {[%clk 0:00:18]}  Bd4+ {[%clk 0:00:05]} 37. Ke1 {[%clk 0:00:17]}  Nxa2 {[%clk 0:00:05]} 38. Rxa6 {[%clk 0:00:17]}  Nc3 {[%clk 0:00:05]} 39. Rd6 {[%clk 0:00:16]}  Be5 {[%clk 0:00:03]} 40. Rb6 {[%clk 0:00:16]}  Bxh2 {[%clk 0:00:02]} 41. Bxb5 {[%clk 0:00:15]}  Bg3+ {[%clk 0:00:03]} 42. Kd2 {[%clk 0:00:15]}  Nd5 {[%clk 0:00:04]} 43. Rb7 {[%clk 0:00:15]}  Nf4 {[%clk 0:00:04]} 44. Bc4 {[%clk 0:00:15]}  Kf6 {[%clk 0:00:03]} 45. Bf1 {[%clk 0:00:13]}  g5 {[%clk 0:00:04]} 46. Ke3 {[%clk 0:00:13]}  h4 {[%clk 0:00:03]} 47. Ke4 {[%clk 0:00:12]}  Nd5 {[%clk 0:00:03]} 48. Bc4 {[%clk 0:00:10]}  Nf4 {[%clk 0:00:03]} 49. Bf1 {[%clk 0:00:10]}  Kg6 {[%clk 0:00:03]} 50. Rb6 {[%clk 0:00:09]}  f5+ {[%clk 0:00:04]} 51. Kd4 {[%clk 0:00:07]}  Bf2+ {[%clk 0:00:04]} 52. Ke5 {[%clk 0:00:06]}  Bxb6 {[%clk 0:00:05]} 0-1


[Site "https://www.chess.com"]

[Event "Titled Tuesday Blitz May 25 2021"]
[White "Denishev, Marat"]
[Black "Visakh N R"]
[WhiteFideId "24131563"]
[BlackFideId "25012223"]
[WhiteElo "2204"]
[BlackElo "2428"]
[Result "0-1"]
[Round "02"]
[TimeControl "180+1"]
[Date "2021.05.25"]
[WhiteClock "0:00:02"]
[BlackClock "0:00:20"]

1. c4 {[%clk 0:03:00]}  Nf6 {[%clk 0:02:54]} 2. Nc3 {[%clk 0:03:00]}  g6 {[%clk 0:02:54]} 3. g3 {[%clk 0:03:00]}  Bg7 {[%clk 0:02:54]} 4. Bg2 {[%clk 0:03:00]}  O-O {[%clk 0:02:55]} 5. Nf3 {[%clk 0:03:00]}  c6 {[%clk 0:02:55]} 6. O-O {[%clk 0:02:58]}  d5 {[%clk 0:02:55]} 7. cxd5 {[%clk 0:02:58]}  cxd5 {[%clk 0:02:56]} 8. d4 {[%clk 0:02:59]}  Nc6 {[%clk 0:02:54]} 9. b3 {[%clk 0:02:55]}  Ne4 {[%clk 0:02:51]} 10. Bb2 {[%clk 0:02:53]}  Bg4 {[%clk 0:02:50]} 11. e3 {[%clk 0:02:40]}  Ng5 {[%clk 0:02:43]} 12. h4 {[%clk 0:02:34]}  Nxf3+ {[%clk 0:02:35]} 13. Bxf3 {[%clk 0:02:35]}  Bxf3 {[%clk 0:02:36]} 14. Qxf3 {[%clk 0:02:35]}  e6 {[%clk 0:02:37]} 15. Rfc1 {[%clk 0:02:32]}  Qf6 {[%clk 0:02:30]} 16. Qe2 {[%clk 0:02:25]}  Rfc8 {[%clk 0:02:30]} 17. Ba3 {[%clk 0:02:12]}  Qd8 {[%clk 0:02:25]} 18. Na4 {[%clk 0:02:07]}  e5 {[%clk 0:02:08]} 19. dxe5 {[%clk 0:02:03]}  Bxe5 {[%clk 0:02:08]} 20. Bb2 {[%clk 0:01:58]}  d4 {[%clk 0:02:08]} 21. exd4 {[%clk 0:01:53]}  Nxd4 {[%clk 0:02:07]} 22. Qe4 {[%clk 0:01:32]}  Qf6 {[%clk 0:01:56]} 23. Kg2 {[%clk 0:00:30]}  Nc6 {[%clk 0:00:31]} 24. Rxc6 {[%clk 0:00:24]}  Qxc6 {[%clk 0:00:31]} 25. Qxc6 {[%clk 0:00:24]}  Rxc6 {[%clk 0:00:31]} 26. Bxe5 {[%clk 0:00:23]}  Rd8 {[%clk 0:00:32]} 27. Nc3 {[%clk 0:00:14]}  f6 {[%clk 0:00:31]} 28. Bxf6 {[%clk 0:00:05]}  Rxf6 {[%clk 0:00:30]} 29. Ne4 {[%clk 0:00:06]}  Rc6 {[%clk 0:00:30]} 30. Re1 {[%clk 0:00:04]}  Rc2 {[%clk 0:00:28]} 31. a4 {[%clk 0:00:04]}  Kg7 {[%clk 0:00:25]} 32. g4 {[%clk 0:00:04]}  Re8 {[%clk 0:00:23]} 33. Kg3 {[%clk 0:00:02]}  Rc3+ {[%clk 0:00:21]} 34. f3 {[%clk 0:00:02]}  Rxb3 {[%clk 0:00:21]} 35. Rc1 {[%clk 0:00:02]}  Rxe4 {[%clk 0:00:20]} 0-1


[Site "https://www.chess.com"]

[Event "Titled Tuesday Blitz May 25 2021"]
[White "Djordjevic, Vuk"]
[Black "Karttunen, Mika"]
[WhiteFideId "902098"]
[BlackFideId "502081"]
[WhiteElo "2463"]
[BlackElo "2343"]
[Result "1-0"]
[Round "02"]
[TimeControl "180+1"]
[Date "2021.05.25"]
[WhiteClock "0:00:05"]
[BlackClock "0:00:07"]

1. d4 {[%clk 0:03:00]}  Nf6 {[%clk 0:02:59]} 2. Bg5 {[%clk 0:03:01]}  c5 {[%clk 0:02:54]} 3. Bxf6 {[%clk 0:03:01]}  gxf6 {[%clk 0:02:53]} 4. dxc5 {[%clk 0:02:59]}  e6 {[%clk 0:02:52]} 5. Nd2 {[%clk 0:02:58]}  Bxc5 {[%clk 0:02:51]} 6. Ne4 {[%clk 0:02:58]}  Be7 {[%clk 0:02:51]} 7. Nd6+ {[%clk 0:02:57]}  Bxd6 {[%clk 0:02:51]} 8. Qxd6 {[%clk 0:02:57]}  Qe7 {[%clk 0:02:51]} 9. Qd2 {[%clk 0:02:53]}  d5 {[%clk 0:02:48]} 10. Nf3 {[%clk 0:02:48]}  Nc6 {[%clk 0:02:47]} 11. e3 {[%clk 0:02:48]}  Bd7 {[%clk 0:02:44]} 12. Bd3 {[%clk 0:02:45]}  f5 {[%clk 0:02:42]} 13. O-O {[%clk 0:02:45]}  Rg8 {[%clk 0:02:38]} 14. c4 {[%clk 0:02:38]}  dxc4 {[%clk 0:02:33]} 15. Bxc4 {[%clk 0:02:38]}  Rg4 {[%clk 0:02:33]} 16. Qe2 {[%clk 0:02:29]}  O-O-O {[%clk 0:02:31]} 17. Rfd1 {[%clk 0:02:12]}  Rdg8 {[%clk 0:02:29]} 18. g3 {[%clk 0:02:11]}  h5 {[%clk 0:02:25]} 19. Rac1 {[%clk 0:02:08]}  Kb8 {[%clk 0:02:18]} 20. Bb5 {[%clk 0:02:07]}  f6 {[%clk 0:01:50]} 21. h3 {[%clk 0:01:36]}  Re4 {[%clk 0:01:35]} 22. Kh2 {[%clk 0:01:28]}  h4 {[%clk 0:01:34]} 23. Nxh4 {[%clk 0:01:22]}  Ne5 {[%clk 0:01:09]} 24. Bxd7 {[%clk 0:01:16]}  Nxd7 {[%clk 0:01:08]} 25. Qd3 {[%clk 0:01:02]}  Ne5 {[%clk 0:01:05]} 26. Qd6+ {[%clk 0:01:00]}  Qxd6 {[%clk 0:01:05]} 27. Rxd6 {[%clk 0:01:01]}  Nc6 {[%clk 0:00:55]} 28. Ng2 {[%clk 0:00:49]}  Kc7 {[%clk 0:00:52]} 29. Rcd1 {[%clk 0:00:42]}  e5 {[%clk 0:00:52]} 30. Rxf6 {[%clk 0:00:39]}  f4 {[%clk 0:00:51]} 31. gxf4 {[%clk 0:00:37]}  Rb4 {[%clk 0:00:50]} 32. b3 {[%clk 0:00:36]}  Rb5 {[%clk 0:00:49]} 33. Rf7+ {[%clk 0:00:30]}  Kb6 {[%clk 0:00:48]} 34. Rd6 {[%clk 0:00:29]}  exf4 {[%clk 0:00:48]} 35. Nxf4 {[%clk 0:00:28]}  Rbg5 {[%clk 0:00:47]} 36. Rff6 {[%clk 0:00:19]}  a5 {[%clk 0:00:41]} 37. Rd5 {[%clk 0:00:17]}  Rg1 {[%clk 0:00:40]} 38. Rdd6 {[%clk 0:00:16]}  Ra1 {[%clk 0:00:38]} 39. a4 {[%clk 0:00:15]}  Ra2 {[%clk 0:00:37]} 40. Ng6 {[%clk 0:00:11]}  Rb2 {[%clk 0:00:35]} 41. Ne7 {[%clk 0:00:09]}  Rg7 {[%clk 0:00:25]} 42. Nxc6 {[%clk 0:00:09]}  bxc6 {[%clk 0:00:25]} 43. Rxc6+ {[%clk 0:00:10]}  Kb7 {[%clk 0:00:26]} 44. Rc4 {[%clk 0:00:06]}  Rxb3 {[%clk 0:00:26]} 45. Rg4 {[%clk 0:00:06]}  Rh7 {[%clk 0:00:25]} 46. Kg3 {[%clk 0:00:06]}  Rb1 {[%clk 0:00:24]} 47. Rf5 {[%clk 0:00:06]}  Rg1+ {[%clk 0:00:24]} 48. Kf4 {[%clk 0:00:07]}  Rf1 {[%clk 0:00:24]} 49. Rb5+ {[%clk 0:00:05]}  Kc6 {[%clk 0:00:23]} 50. f3 {[%clk 0:00:05]}  Rxh3 {[%clk 0:00:22]} 51. Rg3 {[%clk 0:00:06]}  Rh4+ {[%clk 0:00:21]} 52. Rg4 {[%clk 0:00:06]}  Rh3 {[%clk 0:00:22]} 53. Rg6+ {[%clk 0:00:05]}  Kc7 {[%clk 0:00:22]} 54. Rg3 {[%clk 0:00:04]}  Rh4+ {[%clk 0:00:22]} 55. Ke5 {[%clk 0:00:04]}  Rxa4 {[%clk 0:00:22]} 56. f4 {[%clk 0:00:05]}  Kc6 {[%clk 0:00:21]} 57. Rd5 {[%clk 0:00:05]}  Re1 {[%clk 0:00:19]} 58. Rg6+ {[%clk 0:00:05]}  Kc7 {[%clk 0:00:19]} 59. Rd3 {[%clk 0:00:05]}  Rb4 {[%clk 0:00:19]} 60. f5 {[%clk 0:00:05]}  Rb5+ {[%clk 0:00:19]} 61. Ke4 {[%clk 0:00:05]}  Rf1 {[%clk 0:00:19]} 62. Rg7+ {[%clk 0:00:05]}  Kc6 {[%clk 0:00:19]} 63. Rg6+ {[%clk 0:00:05]}  Kc7 {[%clk 0:00:19]} 64. f6 {[%clk 0:00:05]}  Rh5 {[%clk 0:00:18]} 65. Rc3+ {[%clk 0:00:05]}  Kd6 {[%clk 0:00:17]} 66. Rb3 {[%clk 0:00:05]}  Rh4+ {[%clk 0:00:17]} 67. Kd3 {[%clk 0:00:05]}  Ke6 {[%clk 0:00:16]} 68. Rb6+ {[%clk 0:00:05]}  Kf5 {[%clk 0:00:14]} 69. Rg7 {[%clk 0:00:05]}  Rh8 {[%clk 0:00:13]} 70. Re7 {[%clk 0:00:05]}  Rd8+ {[%clk 0:00:12]} 71. Ke2 {[%clk 0:00:05]}  Rc1 {[%clk 0:00:12]} 72. f7 {[%clk 0:00:05]}  Rcc8 {[%clk 0:00:10]} 73. Ra7 {[%clk 0:00:05]}  Rf8 {[%clk 0:00:09]} 74. Rxa5+ {[%clk 0:00:04]}  Kg4 {[%clk 0:00:10]} 75. Rb4+ {[%clk 0:00:05]}  Kg3 {[%clk 0:00:09]} 76. Rg5+ {[%clk 0:00:06]}  Kh3 {[%clk 0:00:10]} 77. Rh5+ {[%clk 0:00:06]}  Kg3 {[%clk 0:00:09]} 78. Rg5+ {[%clk 0:00:07]}  Kh3 {[%clk 0:00:10]} 79. Rb6 {[%clk 0:00:06]}  Rh8 {[%clk 0:00:09]} 80. Rg7 {[%clk 0:00:05]}  Rc2+ {[%clk 0:00:08]} 81. Kd3 {[%clk 0:00:05]}  Rcc8 {[%clk 0:00:07]} 82. Rbg6 {[%clk 0:00:06]}  Kh4 {[%clk 0:00:07]} 83. Rg8 {[%clk 0:00:05]}  Rd8+ {[%clk 0:00:07]} 84. Ke2 {[%clk 0:00:05]}  Kh5 {[%clk 0:00:08]} 85. Rxh8+ {[%clk 0:00:05]}  Rxh8 {[%clk 0:00:07]} 86. Rg8 {[%clk 0:00:05]} 1-0


[Site "https://www.chess.com"]

[Event "Titled Tuesday Blitz May 25 2021"]
[White "Dobrov, Vladimir"]
[Black "Hebden, Mark L"]
[WhiteFideId "4136594"]
[BlackFideId "400084"]
[WhiteElo "2614"]
[BlackElo "2457"]
[Result "1-0"]
[Round "02"]
[TimeControl "180+1"]
[Date "2021.05.25"]
[WhiteClock "0:00:26"]
[BlackClock "0:00:03"]

1. d4 {[%clk 0:03:00]}  Nf6 {[%clk 0:02:59]} 2. c4 {[%clk 0:03:01]}  g6 {[%clk 0:02:59]} 3. g3 {[%clk 0:02:58]}  Bg7 {[%clk 0:02:57]} 4. Bg2 {[%clk 0:02:58]}  c5 {[%clk 0:02:55]} 5. Nf3 {[%clk 0:02:58]}  cxd4 {[%clk 0:02:54]} 6. Nxd4 {[%clk 0:02:58]}  O-O {[%clk 0:02:54]} 7. Nc3 {[%clk 0:02:55]}  Nc6 {[%clk 0:02:54]} 8. O-O {[%clk 0:02:54]}  d6 {[%clk 0:02:54]} 9. e3 {[%clk 0:02:51]}  Bd7 {[%clk 0:02:52]} 10. Nde2 {[%clk 0:02:46]}  Qc8 {[%clk 0:02:42]} 11. b3 {[%clk 0:02:46]}  Bh3 {[%clk 0:02:40]} 12. Bb2 {[%clk 0:02:46]}  Bxg2 {[%clk 0:02:40]} 13. Kxg2 {[%clk 0:02:47]}  Rd8 {[%clk 0:02:37]} 14. Rc1 {[%clk 0:02:46]}  Qd7 {[%clk 0:02:28]} 15. Nf4 {[%clk 0:02:43]}  e6 {[%clk 0:02:22]} 16. Qe2 {[%clk 0:02:38]}  Qe7 {[%clk 0:02:22]} 17. Rfd1 {[%clk 0:02:38]}  Rac8 {[%clk 0:02:20]} 18. Ba3 {[%clk 0:02:35]}  a6 {[%clk 0:02:17]} 19. Rd2 {[%clk 0:02:29]}  Qc7 {[%clk 0:02:14]} 20. Bb2 {[%clk 0:02:18]}  Qa5 {[%clk 0:02:09]} 21. Qd1 {[%clk 0:02:13]}  Ne8 {[%clk 0:01:41]} 22. Ne4 {[%clk 0:02:01]}  Bxb2 {[%clk 0:01:35]} 23. Rxb2 {[%clk 0:02:02]}  b5 {[%clk 0:01:21]} 24. Rd2 {[%clk 0:01:41]}  bxc4 {[%clk 0:01:15]} 25. bxc4 {[%clk 0:01:34]}  Qe5 {[%clk 0:01:04]} 26. Qf3 {[%clk 0:01:28]}  Nf6 {[%clk 0:00:52]} 27. Nxf6+ {[%clk 0:00:48]}  Qxf6 {[%clk 0:00:51]} 28. Qe4 {[%clk 0:00:48]}  Qe5 {[%clk 0:00:48]} 29. Qd3 {[%clk 0:00:47]}  Qc5 {[%clk 0:00:46]} 30. h4 {[%clk 0:00:45]}  Ne5 {[%clk 0:00:44]} 31. Qe2 {[%clk 0:00:42]}  Nxc4 {[%clk 0:00:41]} 32. Rdc2 {[%clk 0:00:43]}  d5 {[%clk 0:00:40]} 33. e4 {[%clk 0:00:43]}  Qb5 {[%clk 0:00:34]} 34. h5 {[%clk 0:00:43]}  Nd6 {[%clk 0:00:28]} 35. exd5 {[%clk 0:00:43]}  Rxc2 {[%clk 0:00:26]} 36. Rxc2 {[%clk 0:00:42]}  exd5 {[%clk 0:00:22]} 37. Qe7 {[%clk 0:00:40]}  Qe8 {[%clk 0:00:21]} 38. Qf6 {[%clk 0:00:39]}  Ne4 {[%clk 0:00:18]} 39. Qd4 {[%clk 0:00:38]}  Ng5 {[%clk 0:00:05]} 40. Re2 {[%clk 0:00:35]}  Qf8 {[%clk 0:00:03]} 41. Nxd5 {[%clk 0:00:29]}  Ne6 {[%clk 0:00:03]} 42. Qe5 {[%clk 0:00:26]} 1-0


[Site "https://www.chess.com"]

[Event "Titled Tuesday Blitz May 25 2021"]
[White "Dong, Bao Nghia"]
[Black "Sorokin, Aleksey"]
[WhiteFideId "12400343"]
[BlackFideId "24176460"]
[WhiteElo "2409"]
[BlackElo "2476"]
[Result "0-1"]
[Round "02"]
[TimeControl "180+1"]
[Date "2021.05.25"]
[WhiteClock "0:00:19"]
[BlackClock "0:00:57"]

1. d4 {[%clk 0:03:00]}  Nf6 {[%clk 0:02:59]} 2. Bf4 {[%clk 0:03:00]}  d5 {[%clk 0:02:59]} 3. e3 {[%clk 0:03:00]}  e6 {[%clk 0:02:59]} 4. Bd3 {[%clk 0:03:00]}  c5 {[%clk 0:02:59]} 5. c3 {[%clk 0:03:01]}  Nc6 {[%clk 0:03:00]} 6. Nd2 {[%clk 0:03:02]}  h6 {[%clk 0:02:54]} 7. h3 {[%clk 0:03:01]}  Bd6 {[%clk 0:02:52]} 8. Ne2 {[%clk 0:03:01]}  O-O {[%clk 0:02:50]} 9. O-O {[%clk 0:03:01]}  b6 {[%clk 0:02:44]} 10. Nf3 {[%clk 0:02:58]}  Bb7 {[%clk 0:02:35]} 11. Rc1 {[%clk 0:02:55]}  Qc7 {[%clk 0:02:32]} 12. c4 {[%clk 0:02:49]}  Bxf4 {[%clk 0:02:29]} 13. Nxf4 {[%clk 0:02:42]}  dxc4 {[%clk 0:02:29]} 14. Rxc4 {[%clk 0:02:37]}  Rad8 {[%clk 0:02:29]} 15. Qe2 {[%clk 0:02:29]}  cxd4 {[%clk 0:02:24]} 16. Nxd4 {[%clk 0:02:28]}  Rxd4 {[%clk 0:02:15]} 17. exd4 {[%clk 0:02:24]}  Qxf4 {[%clk 0:02:15]} 18. d5 {[%clk 0:02:24]}  Nd4 {[%clk 0:02:08]} 19. Qe3 {[%clk 0:02:15]}  Qxe3 {[%clk 0:02:01]} 20. fxe3 {[%clk 0:02:16]}  Nb5 {[%clk 0:02:00]} 21. dxe6 {[%clk 0:02:04]}  fxe6 {[%clk 0:02:01]} 22. a4 {[%clk 0:02:03]}  Nd6 {[%clk 0:01:59]} 23. Rc7 {[%clk 0:01:58]}  Rf7 {[%clk 0:01:58]} 24. Rfc1 {[%clk 0:01:55]}  Nfe8 {[%clk 0:01:47]} 25. Rxf7 {[%clk 0:01:47]}  Kxf7 {[%clk 0:01:48]} 26. b4 {[%clk 0:01:47]}  Ke7 {[%clk 0:01:48]} 27. a5 {[%clk 0:01:47]}  Kd7 {[%clk 0:01:46]} 28. g4 {[%clk 0:01:28]}  Nc7 {[%clk 0:01:45]} 29. Kf2 {[%clk 0:01:05]}  Nd5 {[%clk 0:01:44]} 30. b5 {[%clk 0:00:59]}  bxa5 {[%clk 0:01:34]} 31. Ra1 {[%clk 0:00:59]}  Nb4 {[%clk 0:01:33]} 32. Be2 {[%clk 0:00:56]}  Ne4+ {[%clk 0:01:32]} 33. Kf1 {[%clk 0:00:19]}  Nd2+ {[%clk 0:01:21]} 34. Kf2 {[%clk 0:00:18]}  Ne4+ {[%clk 0:01:07]} 35. Kf1 {[%clk 0:00:18]}  Kc7 {[%clk 0:01:06]} 36. Rxa5 {[%clk 0:00:18]}  Kb6 {[%clk 0:01:05]} 37. Ra4 {[%clk 0:00:19]}  Nc2 {[%clk 0:01:02]} 38. Bd3 {[%clk 0:00:16]}  Nxe3+ {[%clk 0:01:00]} 39. Ke2 {[%clk 0:00:17]}  Nc3+ {[%clk 0:01:00]} 40. Kxe3 {[%clk 0:00:18]}  Nxa4 {[%clk 0:01:00]} 41. Kd4 {[%clk 0:00:18]}  Bd5 {[%clk 0:00:59]} 42. Ke5 {[%clk 0:00:19]}  Nc3 {[%clk 0:00:57]} 0-1


[Site "https://www.chess.com"]

[Event "Titled Tuesday Blitz May 25 2021"]
[White "Drygalov, Sergey"]
[Black "Maltsevskaya, Aleksandra"]
[WhiteFideId "24171743"]
[BlackFideId "24174041"]
[WhiteElo "2538"]
[BlackElo "2225"]
[Result "1-0"]
[Round "02"]
[TimeControl "180+1"]
[Date "2021.05.25"]
[WhiteClock "0:02:07"]
[BlackClock "0:01:29"]

1. e4 {[%clk 0:03:00]}  c6 {[%clk 0:02:58]} 2. d4 {[%clk 0:02:59]}  d5 {[%clk 0:02:57]} 3. exd5 {[%clk 0:02:59]}  cxd5 {[%clk 0:02:57]} 4. Bd3 {[%clk 0:02:59]}  Nc6 {[%clk 0:02:56]} 5. c3 {[%clk 0:03:00]}  Qc7 {[%clk 0:02:56]} 6. h3 {[%clk 0:02:59]}  Bd7 {[%clk 0:02:46]} 7. Nf3 {[%clk 0:02:58]}  e6 {[%clk 0:02:39]} 8. O-O {[%clk 0:02:58]}  f5 {[%clk 0:02:36]} 9. c4 {[%clk 0:02:38]}  Nf6 {[%clk 0:02:33]} 10. Nc3 {[%clk 0:02:35]}  dxc4 {[%clk 0:02:30]} 11. Bxc4 {[%clk 0:02:33]}  Nb4 {[%clk 0:02:27]} 12. Bb3 {[%clk 0:02:32]}  O-O-O {[%clk 0:02:21]} 13. Bg5 {[%clk 0:02:29]}  Be7 {[%clk 0:02:19]} 14. Rc1 {[%clk 0:02:28]}  Kb8 {[%clk 0:02:18]} 15. Nd5 {[%clk 0:02:23]}  Qxc1 {[%clk 0:02:13]} 16. Qxc1 {[%clk 0:02:17]}  Nbxd5 {[%clk 0:02:01]} 17. Bxd5 {[%clk 0:02:16]}  Nxd5 {[%clk 0:01:45]} 18. Bxe7 {[%clk 0:02:16]}  Nxe7 {[%clk 0:01:46]} 19. Ne5 {[%clk 0:02:16]}  Rhf8 {[%clk 0:01:41]} 20. Qc5 {[%clk 0:02:16]}  Rfe8 {[%clk 0:01:32]} 21. Qd6+ {[%clk 0:02:12]}  Kc8 {[%clk 0:01:29]} 22. Nf7 {[%clk 0:02:07]} 1-0


[Site "https://www.chess.com"]